[Event "British Championship 2024"]
[Site "Hull"]
[Date "2024.07.31"]
[Round "3.37"]
[White "Kanyamarala, Trisha"]
[Black "Atako, Chino C"]
[Result "1-0"]
[Annotator "RC"]
[ECO "D35"]
[WhiteElo "2219"]
[BlackElo "2003"]
[PlyCount "129"]
[EventDate "2024.07.31"]
[EventCountry "GBR"]
[SourceTitle "playchess.com"]
[Source "ChessBase"]
[SourceQuality "1"]
[TimeControl "40/5400+30:1800+30"]

1. d4 {[%emt 0:00:05]} d5 {[%emt 0:00:06]} 2. c4 {[%emt 0:00:05]} e6 {[%emt 0:00:22]} 3. Nf3 {[%emt 0:00:36]} Nf6 {[%emt 0:00:26]} 4. Nc3 {[%emt 0:00:11]} a6 {[%emt 0:00:07]} 5. cxd5 {[%emt 0:02:25]} exd5 {[%emt 0:00:08]} 6. Bg5 {[%emt 0:00:15]} Be6 {[%emt 0:00:23]} 7. e3 {[%emt 0:05:03]} Nbd7 {[%emt 0:02:01]} 8. Bd3 {[%emt 0:01:11]} Be7 {[%emt 0:06:57]} 9. O-O {[%emt 0:01:57]} O-O {[%emt 0:00:54]} 10. h3 {[%emt 0:03:47]} Re8 {[%emt 0:03:00]} 11. Qc2 {[%emt 0:04:41]} h6 {[%emt 0:08:47]} 12. Bf4 {[%emt 0:02:18]} c6 {[%emt 0:01:13]} 13. Rad1 {[%emt 0:04:29]} Nf8 {[%emt 0:10:28]} 14. Ne5 {[%emt 0:03:13]} Bd6 {[%emt 0:01:04]} 15. Bh2 {[%emt 0:02:38]} Qc7 {[%emt 0:08:25]} 16. Na4 {[%emt 0:18:18]} N6d7 {[%emt 0:04:54]} 17. f4 {[%emt 0:04:50]} f6 {[%emt 0:00:59]} 18. Nf3 {[%emt 0:01:26]} Re7 {[%emt 0:08:15]} 19. Qf2 {[%emt 0:06:47]} Rae8 {[%emt 0:03:17]} 20. Rfe1 {[%emt 0:03:15]} Bf7 {[%emt 0:04:01]} 21. Nh4 {[%emt 0:01:30]} g6 {[%emt 0:00:33]} 22. Nc3 {[%emt 0:08:46]} c5 {[%emt 0:13:42]} 23. Nf3 {[%emt 0:12:47]} cxd4 {[%emt 0:04:17]} 24. Nxd4 {[%emt 0:00:13]} f5 {[%emt 0:05:30]} 25. Bg3 {[%emt 0:06:02]} Bc5 {[%emt 0:06:25]} 26. Bc2 {[%emt 0:02:19]} Nf6 {[%emt 0:01:33]} 27. Bh4 {[%emt 0:00:24]} N8h7 {[%emt 0:00:09]} 28. Bb3 {[%emt 0:02:07]} b5 {[%emt 0:01:09]} 29. Qf3 {[%emt 0:01:00]} Rd7 {[%emt 0:02:37]} 30. a3 {[%emt 0:00:44]} Qb6 {[%emt 0:01:20]} 31. Kh1 {[%emt 0:01:08]} Kh8 {[%emt 0:02:00]} 32. Nc2 {[%emt 0:00:56]} Qb7 {[%emt 0:00:42]} 33. Nd4 {[%emt 0:00:31]} Qb6 {[%emt 0:00:07]} 34. Bc2 {[%emt 0:00:29]} Qb7 {[%emt 0:00:35]} 35. Qf2 {[%emt 0:00:23]} Qc7 {[%emt 0:00:49]} 36. Nf3 {[%emt 0:00:30]} Bd6 {[%emt 0:00:40]} 37. Bb3 {[%emt 0:00:33]} Qb7 {[%emt 0:00:09]} 38. Qd2 {[%emt 0:00:32]} Bf8 {[%emt 0:00:40]} 39. Ne5 {[%emt 0:00:11]} Red8 {[%emt 0:00:29]} 40. Nxd7 {[%emt 0:00:08]} Rxd7 {[%emt 0:00:20]} 41. Bc2 {[%emt 0:03:02]} Bc5 {[%emt 0:00:25]} 42. Ne2 {[%emt 0:02:35]} Kg7 {[%emt 0:00:09]} 43. Nd4 {[%emt 0:01:03]} Be7 {[%emt 0:00:03]} 44. Nf3 {[%emt 0:02:28]} Rc7 {[%emt 0:01:24]} 45. Rc1 {[%emt 0:09:16]} Bg8 {[%emt 0:02:37]} 46. Bb1 {[%emt 0:00:45]} Rd7 {[%emt 0:00:16]} 47. Qd4 {[%emt 0:02:33]} Nf8 {[%emt 0:00:17]} 48. b4 {[%emt 0:02:42]} Ne6 {[%emt 0:00:16]} 49. Qb2 {[%emt 0:00:16]} Rd8 {[%emt 0:05:18]} 50. Ne5 {[%emt 0:00:42]} Rd6 {[%emt 0:00:49]} 51. Qf2 {[%emt 0:01:16]} d4 {[%emt 0:02:53]} 52. exd4 {[%emt 0:01:08]} Nxd4 {[%emt 0:01:02]} 53. Rcd1 {[%emt 0:01:10]} Ne4 {[%emt 0:01:35]} 54. Bxe4 {[%emt 0:01:06]} Bxh4 {[%emt 0:00:09]} 55. Qxh4 {[%emt 0:01:59]} fxe4 {[%emt 0:00:13]} 56. Qf2 {[%emt 0:00:57]} Nf5 {[%emt 0:00:57]} 57. Rxd6 {[%emt 0:00:37]} Nxd6 {[%emt 0:00:04]} 58. Qb2 {[%emt 0:03:08]} Kh7 {[%emt 0:00:19]} 59. Ng4 {[%emt 0:00:30]} Qg7 {[%emt 0:03:53]} 60. Qd2 {[%emt 0:01:12]} Nc4 {[%emt 0:03:10]} 61. Qd8 {[%emt 0:00:30]} e3 {[%emt 0:05:12]} 62. Nxe3 {[%emt 0:01:11]} h5 {[%emt 0:02:05]} 63. Nd5 {[%emt 0:01:42]} Bxd5 {[%emt 0:00:42]} 64. Qxd5 {[%emt 0:00:08]} Nb6 {[%emt 0:02:05]} 65. Qd8 {[%emt 0:00:31]} 1-0

[Event "British Championship 2024"]
[Site "Hull"]
[Date "2024.07.31"]
[Round "3.38"]
[White "Taylor, Adam A"]
[Black "Sachdeva, Ronit"]
[Result "1/2-1/2"]
[Annotator "RC"]
[ECO "A11"]
[WhiteElo "2281"]
[BlackElo "1907"]
[PlyCount "36"]
[EventDate "2024.07.31"]
[EventCountry "GBR"]
[SourceTitle "playchess.com"]
[Source "ChessBase"]
[SourceQuality "1"]
[TimeControl "40/5400+30:1800+30"]

1. Nf3 {[%emt 0:00:02]} Nf6 {[%emt 0:00:05]} 2. g3 {[%emt 0:00:10]} d5 {[%emt 0:00:07]} 3. Bg2 {[%emt 0:00:16]} c6 {[%emt 0:00:20]} 4. O-O {[%emt 0:00:13]} Bf5 {[%emt 0:00:05]} 5. d3 {[%emt 0:01:16]} e6 {[%emt 0:00:09]} 6. c4 {[%emt 0:02:14]} dxc4 {[%emt 0:00:10]} 7. dxc4 {[%emt 0:00:47]} Qxd1 {[%emt 0:00:06]} 8. Rxd1 {[%emt 0:00:01]} h6 {[%emt 0:00:09]} 9. Nc3 {[%emt 0:00:54]} Nbd7 {[%emt 0:00:07]} 10. b3 {[%emt 0:01:31]} Be7 {[%emt 0:00:17]} 11. Bb2 {[%emt 0:03:06]} Bh7 {[%emt 0:00:07]} 12. Ne1 {[%emt 0:13:43]} O-O {[%emt 0:07:55]} 13. e4 {[%emt 0:04:41]} Rfd8 {[%emt 0:04:15]} 14. f3 {[%emt 0:02:55]} a5 {[%emt 0:08:06]} 15. Kf2 {[%emt 0:06:33]} Nc5 {[%emt 0:07:40]} 16. Rxd8+ {[%emt 0:00:28]} Rxd8 {[%emt 0:00:07]} 17. Ke3 {[%emt 0:22:39]} g5 {[%emt 0:10:49]} 18. Ba3 {[%emt 0:25:05]} Kf8 {[%emt 0:07:11]} 1/2-1/2

[Event "British Championship 2024"]
[Site "Hull"]
[Date "2024.07.31"]
[Round "3.39"]
[White "Beaumont, Chris R"]
[Black "Verma, Aditya"]
[Result "0-1"]
[Annotator "RC"]
[ECO "E04"]
[WhiteElo "2198"]
[BlackElo "2118"]
[PlyCount "52"]
[EventDate "2024.07.31"]
[EventCountry "GBR"]
[SourceTitle "playchess.com"]
[Source "ChessBase"]
[SourceQuality "1"]
[TimeControl "40/5400+30:1800+30"]

1. Nf3 {[%emt 0:07:04]} Nf6 {[%emt 0:00:07]} 2. c4 {[%emt 0:00:10]} e6 {[%emt 0:00:06]} 3. g3 {[%emt 0:00:08]} d5 {[%emt 0:00:05]} 4. d4 {[%emt 0:00:15]} dxc4 {[%emt 0:00:06]} 5. Bg2 {[%emt 0:00:08]} a6 {[%emt 0:02:59]} 6. O-O {[%emt 0:05:33]} Nc6 {[%emt 0:02:39]} 7. a4 {[%emt 0:25:03]} Rb8 {[%emt 0:03:50]} 8. a5 {[%emt 0:06:06]} b5 {[%emt 0:13:18]} 9. axb6 {[%emt 0:00:45]} Rxb6 {[%emt 0:08:37]} 10. Qa4 {[%emt 0:13:07]} Bd7 {[%emt 0:03:03]} 11. Qxc4 {[%emt 0:03:15]} Nb4 {[%emt 0:01:19]} 12. Nc3 {[%emt 0:03:48]} Be7 {[%emt 0:16:26]} 13. Ne5 {[%emt 0:04:33]} O-O {[%emt 0:01:14]} 14. Nxd7 {[%emt 0:01:01]} Qxd7 {[%emt 0:00:04]} 15. Na4 {[%emt 0:09:15]} Rb5 {[%emt 0:01:36]} 16. e4 {[%emt 0:03:35]} Nc6 {[%emt 0:09:32]} 17. e5 {[%emt 0:08:08]} Nd5 {[%emt 0:00:09]} 18. Nc3 {[%emt 0:00:10]} Rb4 {[%emt 0:02:34]} 19. Qxa6 {[%emt 0:00:15]} Nxd4 {[%emt 0:00:49]} 20. Rd1 {[%emt 0:04:18]} c5 {[%emt 0:02:53]} 21. Ne4 {[%emt 0:01:43]} Qc7 {[%emt 0:01:51]} 22. f4 {[%emt 0:01:46]} Rfb8 {[%emt 0:05:13]} 23. Ra2 {[%emt 0:00:37]} Nb3 {[%emt 0:02:43]} 24. Nc3 {[%emt 0:00:29]} Rd4 {[%emt 0:01:16]} 25. Rxd4 {[%emt 0:00:13]} cxd4 {[%emt 0:00:10]} 26. Bxd5 {[%emt 0:01:34]} exd5 {[%emt 0:00:10]} 0-1

[Event "British Championship 2024"]
[Site "Hull"]
[Date "2024.07.31"]
[Round "3.40"]
[White "Larchikov, Maksym"]
[Black "Arnott, Jonathan W"]
[Result "1/2-1/2"]
[Annotator "RC"]
[ECO "E11"]
[WhiteElo "2181"]
[BlackElo "2104"]
[PlyCount "56"]
[EventDate "2024.07.31"]
[EventCountry "GBR"]
[SourceTitle "playchess.com"]
[Source "ChessBase"]
[SourceQuality "1"]
[TimeControl "40/5400+30:1800+30"]

1. d4 {[%emt 0:00:06]} e6 {[%emt 0:00:01]} 2. c4 {[%emt 0:00:29]} Nf6 {[%emt 0:00:03]} 3. Nf3 {[%emt 0:00:26]} Bb4+ {[%emt 0:00:03]} 4. Bd2 {[%emt 0:00:34]} Qe7 {[%emt 0:00:06]} 5. g3 {[%emt 0:00:52]} Nc6 {[%emt 0:00:09]} 6. Bg2 {[%emt 0:01:22]} O-O {[%emt 0:00:34]} 7. O-O {[%emt 0:01:06]} Bxd2 {[%emt 0:03:45]} 8. Qxd2 {[%emt 0:01:10]} Ne4 {[%emt 0:00:22]} 9. Qc2 {[%emt 0:02:08]} f5 {[%emt 0:00:36]} 10. Nc3 {[%emt 0:05:07]} Nxc3 {[%emt 0:00:42]} 11. Qxc3 {[%emt 0:00:10]} d6 {[%emt 0:00:11]} 12. d5 {[%emt 0:11:50]} Nd8 {[%emt 0:00:19]} 13. dxe6 {[%emt 0:01:49]} Nxe6 {[%emt 0:01:18]} 14. Nd4 {[%emt 0:13:08]} c6 {[%emt 0:13:29]} 15. Rad1 {[%emt 0:01:13]} Rf6 {[%emt 0:11:16]} 16. Rfe1 {[%emt 0:04:36]} f4 {[%emt 0:07:55]} 17. Nxe6 {[%emt 0:11:52]} Bxe6 {[%emt 0:01:22]} 18. Qd4 {[%emt 0:00:46]} fxg3 {[%emt 0:00:46]} 19. hxg3 {[%emt 0:00:14]} Raf8 {[%emt 0:05:42]} 20. b3 {[%emt 0:04:18]} Rxf2 {[%emt 0:03:18]} 21. Qxf2 {[%emt 0:00:21]} Rxf2 {[%emt 0:00:10]} 22. Kxf2 {[%emt 0:00:04]} Qf6+ {[%emt 0:07:56]} 23. Kg1 {[%emt 0:00:15]} Qe5 {[%emt 0:00:38]} 24. Rd3 {[%emt 0:03:02]} Bf5 {[%emt 0:02:16]} 25. e4 {[%emt 0:01:14]} Bg4 {[%emt 0:00:19]} 26. Kh2 {[%emt 0:10:00]} Qh5+ {[%emt 0:00:10]} 27. Kg1 {[%emt 0:00:07]} Qe5 {[%emt 0:00:30]} 28. Kh2 {[%emt 0:02:12]} Qh5+ {[%emt 0:07:25]} 1/2-1/2

[Event "British Championship 2024"]
[Site "Hull"]
[Date "2024.07.31"]
[Round "3.41"]
[White "Starley, Robert"]
[Black "Bradbury, Neil H"]
[Result "1/2-1/2"]
[Annotator "RC"]
[ECO "B12"]
[WhiteElo "2017"]
[BlackElo "2153"]
[PlyCount "133"]
[EventDate "2024.07.31"]
[EventCountry "GBR"]
[SourceTitle "playchess.com"]
[Source "ChessBase"]
[SourceQuality "1"]
[TimeControl "40/5400+30:1800+30"]

1. e4 {[%emt 0:00:02]} c6 {[%emt 0:00:10]} 2. d4 {[%emt 0:00:05]} d5 {[%emt 0:00:05]} 3. e5 {[%emt 0:00:04]} c5 {[%emt 0:01:28]} 4. dxc5 {[%emt 0:00:11]} e6 {[%emt 0:00:16]} 5. Qg4 {[%emt 0:00:16]} Nc6 {[%emt 0:05:07]} 6. Nf3 {[%emt 0:00:43]} Nge7 {[%emt 0:15:09]} 7. b4 {[%emt 0:01:34]} h5 {[%emt 0:07:39]} 8. Qh4 {[%emt 0:01:02]} Qc7 {[%emt 0:05:22]} 9. Bb5 {[%emt 0:01:43]} a5 {[%emt 0:12:33]} 10. c3 {[%emt 0:06:02]} Nf5 {[%emt 0:02:00]} 11. Qf4 {[%emt 0:04:23]} g6 {[%emt 0:00:11]} 12. Qd2 {[%emt 0:02:21]} Bg7 {[%emt 0:04:26]} 13. O-O {[%emt 0:01:07]} O-O {[%emt 0:03:04]} 14. Bxc6 {[%emt 0:01:38]} bxc6 {[%emt 0:00:03]} 15. Re1 {[%emt 0:00:29]} f6 {[%emt 0:00:12]} 16. exf6 {[%emt 0:01:40]} Bxf6 {[%emt 0:00:01]} 17. Bb2 {[%emt 0:02:20]} Qg7 {[%emt 0:03:39]} 18. Nd4 {[%emt 0:04:00]} axb4 {[%emt 0:10:10]} 19. Nxc6 {[%emt 0:03:13]} Qc7 {[%emt 0:07:33]} 20. Nxb4 {[%emt 0:01:25]} Qxc5 {[%emt 0:00:02]} 21. Nd3 {[%emt 0:04:34]} Qd6 {[%emt 0:06:20]} 22. a4 {[%emt 0:02:16]} Qc7 {[%emt 0:02:18]} 23. Qf4 {[%emt 0:07:24]} e5 {[%emt 0:06:42]} 24. Qd2 {[%emt 0:06:41]} Bb7 {[%emt 0:00:10]} 25. Ba3 {[%emt 0:01:15]} Rfe8 {[%emt 0:01:23]} 26. Bb4 {[%emt 0:01:51]} d4 {[%emt 0:02:58]} 27. Nc5 {[%emt 0:04:56]} Bd5 {[%emt 0:00:24]} 28. Ne4 {[%emt 0:06:34]} Bxe4 {[%emt 0:00:06]} 29. Rxe4 {[%emt 0:00:05]} Qc6 {[%emt 0:00:19]} 30. Qa2+ {[%emt 0:01:10]} Kg7 {[%emt 0:00:22]} 31. f3 {[%emt 0:06:15]} Ne3 {[%emt 0:00:35]} 32. Nd2 {[%emt 0:05:37]} Nd5 {[%emt 0:00:31]} 33. Qa3 {[%emt 0:05:14]} dxc3 {[%emt 0:01:03]} 34. Rc4 {[%emt 0:02:22]} Qb6+ {[%emt 0:01:52]} 35. Bc5 {[%emt 0:00:06]} Qa6 {[%emt 0:00:13]} 36. Rxc3 {[%emt 0:00:40]} Nxc3 {[%emt 0:01:33]} 37. Qxc3 {[%emt 0:00:05]} e4 {[%emt 0:00:39]} 38. Bd4 {[%emt 0:00:13]} Qa7 {[%emt 0:00:46]} 39. Nb3 {[%emt 0:01:17]} exf3 {[%emt 0:00:52]} 40. Nc5 {[%emt 0:01:14]} Bxd4+ {[%emt 0:01:13]} 41. Qxd4+ {[%emt 0:30:07]} Kh7 {[%emt 0:01:34]} 42. gxf3 {[%emt 0:00:00]} Rad8 {[%emt 0:01:50]} 43. Qf2 {[%emt 0:00:00]} Re5 {[%emt 0:10:56]} 44. Ne4 {[%emt 0:00:00]} Ra8 {[%emt 0:00:21]} 45. Rb1 {[%emt 0:00:00]} Qxf2+ {[%emt 0:05:53]} 46. Kxf2 {[%emt 0:00:00]} Rxa4 {[%emt 0:00:12]} 47. Rb7+ {[%emt 0:00:00]} Kh6 {[%emt 0:02:27]} 48. h4 {[%emt 0:00:00]} Rf5 {[%emt 0:01:52]} 49. Kg3 {[%emt 0:00:00]} Ra3 {[%emt 0:00:36]} 50. Ng5 {[%emt 0:00:00]} Rxg5+ {[%emt 0:00:04]} 51. hxg5+ {[%emt 0:00:00]} Kxg5 {[%emt 0:00:06]} 52. Rb5+ {[%emt 0:00:00]} Kh6 {[%emt 0:00:12]} 53. Rb6 {[%emt 0:00:00]} Ra5 {[%emt 0:00:19]} 54. Rb7 {[%emt 0:00:00]} Kg5 {[%emt 0:01:11]} 55. Rb4 {[%emt 0:00:00]} Rc5 {[%emt 0:01:28]} 56. Ra4 {[%emt 0:00:00]} Kf5 {[%emt 0:00:26]} 57. Rf4+ {[%emt 0:00:00]} Kg5 {[%emt 0:00:37]} 58. Ra4 {[%emt 0:00:00]} Rf5 {[%emt 0:01:44]} 59. f4+ {[%emt 0:00:00]} Kh6 {[%emt 0:00:23]} 60. Kh4 {[%emt 0:00:00]} Rc5 {[%emt 0:00:47]} 61. Ra7 {[%emt 0:00:00]} Rc4 {[%emt 0:01:48]} 62. Kg3 {[%emt 0:00:00]} Rc3+ {[%emt 0:00:17]} 63. Kg2 {[%emt 0:00:00]} h4 {[%emt 0:01:02]} 64. Ra5 {[%emt 0:00:18]} h3+ {[%emt 0:02:47]} 65. Kh2 {[%emt 0:00:25]} Rf3 {[%emt 0:00:09]} 66. Rb5 {[%emt 0:01:03]} Rxf4 {[%emt 0:00:25]} 67. Kxh3 {[%emt 0:00:08]} 1/2-1/2

[Event "British Championship 2024"]
[Site "Hull"]
[Date "2024.07.31"]
[Round "3.43"]
[White "Kalaiyalahan, Akshaya"]
[Black "Merriman, James"]
[Result "1-0"]
[Annotator "RC"]
[ECO "A62"]
[WhiteElo "2140"]
[BlackElo "1974"]
[PlyCount "129"]
[EventDate "2024.07.31"]
[EventCountry "GBR"]
[SourceTitle "playchess.com"]
[Source "ChessBase"]
[SourceQuality "1"]
[TimeControl "40/5400+30:1800+30"]

1. d4 {[%emt 0:00:03]} Nf6 {[%emt 0:00:15]} 2. c4 {[%emt 0:00:03]} e6 {[%emt 0:00:13]} 3. g3 {[%emt 0:00:09]} c5 {[%emt 0:00:08]} 4. d5 {[%emt 0:00:07]} exd5 {[%emt 0:00:24]} 5. cxd5 {[%emt 0:00:05]} d6 {[%emt 0:00:04]} 6. Nc3 {[%emt 0:00:11]} g6 {[%emt 0:00:36]} 7. Bg2 {[%emt 0:00:09]} Bg7 {[%emt 0:00:07]} 8. Nf3 {[%emt 0:00:21]} O-O {[%emt 0:00:05]} 9. O-O {[%emt 0:00:05]} Re8 {[%emt 0:00:13]} 10. Bf4 {[%emt 0:00:27]} a6 {[%emt 0:04:20]} 11. a4 {[%emt 0:00:21]} h6 {[%emt 0:00:27]} 12. Qc1 {[%emt 0:01:33]} g5 {[%emt 0:00:28]} 13. Be3 {[%emt 0:04:23]} Nbd7 {[%emt 1:29:40]} 14. h4 {[%emt 0:06:49]} g4 {[%emt 0:00:00]} 15. Nd2 {[%emt 0:01:53]} Ne5 {[%emt 0:00:00]} 16. Qc2 {[%emt 0:03:29]} Bd7 {[%emt 0:00:00]} 17. a5 {[%emt 0:01:30]} Qc8 {[%emt 0:00:00]} 18. Bf4 {[%emt 0:06:34]} Bb5 {[%emt 0:00:00]} 19. Nde4 {[%emt 0:05:28]} Nxe4 {[%emt 0:00:00]} 20. Bxe4 {[%emt 0:02:49]} Bd7 {[%emt 0:00:00]} 21. Na4 {[%emt 0:01:39]} Qc7 {[%emt 0:00:00]} 22. Nb6 {[%emt 0:02:09]} Rad8 {[%emt 0:00:00]} 23. Nxd7 {[%emt 0:08:39]} Qxd7 {[%emt 0:00:00]} 24. Bf5 {[%emt 0:01:59]} Qb5 {[%emt 0:00:00]} 25. Bxe5 {[%emt 0:12:14]} Rxe5 {[%emt 0:00:00]} 26. Bxg4 {[%emt 0:01:06]} Rxd5 {[%emt 0:00:00]} 27. Bf3 {[%emt 0:01:42]} Rd4 {[%emt 0:00:00]} 28. b3 {[%emt 0:09:52]} Rb4 {[%emt 0:00:00]} 29. Ra3 {[%emt 0:03:23]} d5 {[%emt 0:00:00]} 30. Rd1 {[%emt 0:00:42]} d4 {[%emt 0:00:00]} 31. Be4 {[%emt 0:02:18]} Re8 {[%emt 0:00:00]} 32. Bh7+ {[%emt 0:03:09]} Kh8 {[%emt 0:00:00]} 33. Bd3 {[%emt 0:00:04]} Qc6 {[%emt 0:00:00]} 34. Rc1 {[%emt 0:01:43]} Re5 {[%emt 0:00:00]} 35. Qd2 {[%emt 0:01:56]} Qe6 {[%emt 0:00:00]} 36. Bc4 {[%emt 0:04:22]} Qg4 {[%emt 0:00:00]} 37. Ra2 {[%emt 0:06:31]} Re3 {[%emt 0:05:27]} 38. Bd5 {[%emt 0:04:49]} Rc3 {[%emt 0:02:45]} 39. Kg2 {[%emt 0:04:11]} Kg8 {[%emt 0:02:10]} 40. Rac2 {[%emt 0:00:49]} Qf5 {[%emt 0:01:53]} 41. Bc4 {[%emt 0:03:18]} Qe4+ {[%emt 0:04:37]} 42. Kg1 {[%emt 0:02:55]} Rxc2 {[%emt 0:02:54]} 43. Rxc2 {[%emt 0:00:48]} Qe5 {[%emt 0:01:49]} 44. Qd3 {[%emt 0:00:53]} Bf6 {[%emt 0:04:44]} 45. Qf3 {[%emt 0:01:12]} h5 {[%emt 0:01:10]} 46. Kg2 {[%emt 0:05:05]} Kg7 {[%emt 0:00:19]} 47. Bd5 {[%emt 0:01:17]} Rb5 {[%emt 0:02:47]} 48. Ra2 {[%emt 0:00:14]} b6 {[%emt 0:01:23]} 49. Bc4 {[%emt 0:01:18]} Rxa5 {[%emt 0:00:12]} 50. Rxa5 {[%emt 0:00:39]} bxa5 {[%emt 0:00:01]} 51. Qb7 {[%emt 0:01:15]} Be7 {[%emt 0:01:49]} 52. Qf3 {[%emt 0:02:12]} f6 {[%emt 0:06:36]} 53. Qa8 {[%emt 0:01:12]} f5 {[%emt 0:01:12]} 54. Qe8 {[%emt 0:04:13]} Kh6 {[%emt 0:01:26]} 55. Bf7 {[%emt 0:01:50]} f4 {[%emt 0:00:33]} 56. gxf4 {[%emt 0:05:37]} Qe4+ {[%emt 0:02:15]} 57. Kg1 {[%emt 0:00:31]} Qb1+ {[%emt 0:00:32]} 58. Kh2 {[%emt 0:00:28]} Bxh4 {[%emt 0:00:41]} 59. Qf8+ {[%emt 0:01:37]} Kh7 {[%emt 0:00:12]} 60. Bg8+ {[%emt 0:00:25]} Kg6 {[%emt 0:00:08]} 61. f5+ {[%emt 0:00:44]} Kg5 {[%emt 0:00:09]} 62. Qe7+ {[%emt 0:01:22]} Kg4 {[%emt 0:00:20]} 63. f3+ {[%emt 0:00:34]} Kf4 {[%emt 0:00:15]} 64. Qxh4+ {[%emt 0:00:09]} Ke3 {[%emt 0:00:05]} 65. Qe4+ {[%emt 0:00:35]} 1-0